bitfinex-derivatives/quotes_ETHF0:USTF0_20250114
["timestamp","ask_amount","ask_price","bid_price","bid_amount"]
[1736828673895,0.31573,3168.7,3168.4,0.79375]
[1736828674797,0.31573,3168.6,3168.4,0.478]
[1736828674998,0.31573,3168.7,3168.4,0.478]
[1736828675197,0.31573,3168.7,3168.4,0.79375]
[1736828678900,0.4782,3168.9,3168.4,0.478]
[1736828679202,0.31574,3168.6,3168.4,0.478]
[1736828679501,0.4806,3168.5,3168.4,0.79375]
[1736828679698,0.4806,3168.5,3168.4,0.478]
[1736828680096,0.4806,3168.5,3168.4,0.79375]
[1736828681000,0.4806,3168.5,3168.4,0.478]
[1736828682099,0.79634,3168.5,3168.4,0.478]
[1736828682404,0.4806,3168.5,3168.4,0.478]
[1736828683605,0.4806,3168.5,3168.4,0.79375]
[1736828684304,0.9655,3168.5,3168.4,0.79375]
[1736828685303,0.9655,3168.5,3168.4,1.9902476]
[1736828686402,3.89683021,3169.1,3168.4,1.6744976]
[1736828686606,0.31573,3168.7,3168.6,1.1964976]
[1736828689910,0.31574,3168.5,3168.4,1.6744976]
[1736828690109,0.31574,3168.5,3168.4,0.478]
[1736828691211,0.31574,3168.5,3168.4,1.6744976]
[1736828693106,0.31574,3168.5,3168.4,0.478]
[1736828693506,1.25884,3168.5,3168.4,0.478]
[1736828695806,0.31572,3168.8,3168.6,0.31573]
[1736828696013,0.31572,3168.8,3168.7,1.6863976]
[1736828697408,0.31572,3168.8,3168.7,0.4899]
[1736828698612,3.2078,3168.9,3168.7,0.80561]
[1736828699807,3.52351,3168.9,3168.7,0.80561]
[1736828700007,3.2078,3168.9,3168.7,0.80561]
[1736828700203,3.52351,3168.9,3168.7,0.80561]
[1736828700402,3.2078,3168.9,3168.8,0.31571]
[1736828702309,0.31567,3169.3,3168.8,3.2078]
[1736828702508,0.31568,3169.2,3168.9,2.1827]
[1736828702701,0.31568,3169.2,3169.0,0.31569]
[1736828703106,0.31568,3169.2,3169.1,0.4886]
[1736828706213,0.31569,3169.0,3168.9,0.4628]
[1736828706913,0.80039,3169.0,3168.9,0.4628]
[1736828708410,0.80039,3169.0,3168.4,0.4578]
[1736828708616,0.31573,3168.6,3168.5,1.7319]
[1736828709614,0.31574,3168.5,3168.4,1.245]
[1736828709814,1.27344,3168.5,3168.4,1.245]
[1736828711810,0.9577,3168.5,3168.3,0.4869]
[1736828712015,0.31575,3168.4,3168.3,0.4869]
[1736828712310,0.31575,3168.4,3167.9,3.2078]
[1736828712311,0.31579,3168.0,3167.9,3.2078]
[1736828712510,2.52729505,3168.3,3167.6,0.9425]
[1736828712709,1.27121,3167.9,3167.6,1.25833]
[1736828712913,0.9554,3167.9,3167.6,0.9425]
[1736828713110,0.31582,3167.8,3167.7,1.245]
[1736828713513,0.9554,3167.9,3167.6,2.1875]
[1736828713717,0.31582,3167.7,3167.6,2.1875]
[1736828714112,0.31582,3167.7,3167.6,0.4845]
[1736828714317,0.9554,3167.9,3167.4,1.245]
[1736828714518,0.31584,3167.5,3167.4,1.245]
[1736828715619,0.31584,3167.6,3167.4,1.245]
[1736828715920,0.31584,3167.5,3167.4,1.245]
[1736828716813,0.31584,3167.6,3167.3,0.31586]
[1736828717012,0.31584,3167.6,3167.3,1.56086]
[1736828719221,0.31585,3167.5,3167.3,1.245]
[1736828720915,0.31584,3167.6,3167.3,1.56086]
[1736828721222,1.27121,3167.9,3167.5,3.2078]
[1736828721422,1.27121,3167.9,3167.6,0.9584]
[1736828721919,0.31582,3167.8,3167.6,0.9584]
[1736828722620,0.9554,3167.9,3167.7,0.31582]
[1736828722923,0.493,3167.9,3167.8,0.31581]
[1736828724412,0.493,3167.9,3167.6,0.9584]
[1736828724619,0.493,3167.9,3167.7,0.31582]
[1736828725622,0.493,3167.9,3167.8,0.31581]
[1736828725820,0.31578,3168.2,3167.9,0.3158]
[1736828726742,1.25736,3168.3,3168.0,0.31579]
[1736828726934,0.31578,3168.2,3168.0,1.56079]
[1736828727641,0.31578,3168.2,3168.0,1.245]
[1736828731443,0.31578,3168.2,3168.1,0.4574]
[1736828733142,0.9416,3168.3,3168.1,0.4574]
[1736828733346,0.31577,3168.2,3168.1,0.9358]
[1736828734839,0.9416,3168.3,3168.1,0.9358]
[1736828735049,0.9416,3168.3,3168.2,0.31577]
[1736828737447,1.25736,3168.3,3168.1,4.45938]
[1736828737745,0.9416,3168.3,3168.2,0.31577]
[1736828738147,0.68913173,3168.7,3168.1,6.67089505]
[1736828738344,1.28544,3168.6,3168.1,6.67089505]
[1736828738649,1.28544,3168.6,3168.4,0.31575]
[1736828740244,0.9697,3168.6,3168.5,0.4521]
[1736828740453,0.9697,3168.6,3168.5,0.76784]
[1736828740847,0.9697,3168.6,3168.5,0.4521]
[1736828741043,0.9697,3168.6,3168.5,0.76784]
[1736828743250,1.28543,3168.6,3168.5,0.4521]
[1736828743652,0.9697,3168.6,3168.5,0.4521]
[1736828743848,0.29616341,3169.0,3168.5,3.6599]
[1736828744145,0.31572,3168.8,3168.6,0.80593]
[1736828744455,0.31572,3168.7,3168.6,0.4902]
[1736828748856,0.31572,3168.7,3168.6,0.80593]
[1736828749447,0.31572,3168.7,3168.6,0.4902]
[1736828752952,0.9662,3168.9,3168.6,0.4902]
[1736828753159,1.28191,3168.9,3168.7,0.31572]
[1736828754255,0.9662,3168.9,3168.6,0.4902]
[1736828754447,0.31571,3168.8,3168.6,0.80593]
[1736828755760,0.31571,3168.8,3168.6,2.05093]
[1736828758063,0.9662,3168.9,3168.6,2.05093]
[1736828758264,0.31572,3168.7,3168.6,2.05093]
[1736828759263,0.31572,3168.8,3168.6,1.7352]
[1736828759467,0.9662,3168.9,3168.6,2.05093]
[1736828759762,0.31571,3168.8,3168.6,2.05093]
[1736828761767,0.31572,3168.7,3168.6,1.7352]
[1736828763974,0.9662,3168.9,3168.6,1.7352]
[1736828764258,0.9662,3168.9,3168.6,2.05093]
[1736828764464,0.31572,3168.7,3168.6,2.05093]
[1736828765567,0.9662,3168.9,3168.6,1.7352]
[1736828765865,3.2078,3169.6,3168.8,5.73509505]
[1736828766062,0.3157,3168.9,3168.8,5.73509505]
[1736828766368,0.31572,3168.7,3168.6,1.7352]
[1736828766570,0.31572,3168.7,3168.6,0.4902]
[1736828766866,0.31576,3168.3,3168.2,2.52729505]
[1736828767065,0.31578,3168.2,3168.0,4.1667]
[1736828767303,0.4826,3168.1,3168.0,4.1667]
[1736828767564,0.4826,3168.1,3168.0,3.2078]
[1736828767769,0.79838,3168.1,3168.0,3.2078]
[1736828770071,1.29148,3168.1,3168.0,3.2078]
[1736828771065,0.4826,3168.1,3168.0,3.2078]
[1736828771469,0.4826,3168.1,3167.8,2.84310505]
[1736828771669,0.79839,3168.1,3167.9,0.4623]
[1736828772669,0.4826,3168.1,3167.9,0.4623]
[1736828772869,0.4866,3168.2,3168.1,0.31578]
[1736828773071,0.80395,3168.5,3168.2,0.31577]
[1736828773370,0.4882,3168.5,3168.2,0.31577]
[1736828773671,0.31575,3168.4,3168.2,0.31577]
[1736828774071,0.4882,3168.5,3168.2,0.31577]
[1736828774269,0.80395,3168.5,3168.2,0.31577]
[1736828774570,0.31576,3168.4,3168.2,0.31577]
[1736828774870,0.31575,3168.4,3168.1,3.33057505]
[1736828775473,0.4882,3168.5,3168.1,3.01479505]
[1736828775663,0.31576,3168.4,3168.2,0.31577]
[1736828776573,0.80395,3168.5,3168.2,0.31577]
[1736828776766,0.80395,3168.5,3168.4,2.52729505]
[1736828785881,0.4882,3168.5,3168.4,2.52729505]
[1736828786073,0.4774,3168.6,3168.4,2.52729505]
[1736828786274,0.79313,3168.6,3168.5,0.4865]
[1736828791179,0.4774,3168.6,3168.2,3.2078]
[1736828791480,0.31583,3167.6,3167.5,2.52729505]
[1736828791869,0.31584,3167.5,3167.4,3.2078]
[1736828792076,0.76774,3167.5,3167.4,3.2078]
[1736828792271,0.4519,3167.5,3167.2,0.46348354]
[1736828792583,0.31586,3167.3,3167.2,0.46348354]
[1736828793282,0.4958,3167.4,3166.9,3.2078]
[1736828793582,0.31589,3167.0,3166.9,3.2078]
[1736828798371,0.31594,3166.6,3166.4,7.44839505]
[1736828799980,0.31594,3166.5,3166.4,5.73509505]
[1736828800680,0.4828,3166.8,3166.4,5.73509505]
[1736828800880,0.31594,3166.6,3166.4,5.73509505]
[1736828801483,0.4828,3166.8,3166.4,5.73509505]
[1736828801686,0.31593,3166.7,3166.4,6.05104505]
[1736828801982,0.31594,3166.6,3166.4,5.73509505]
[1736828802587,0.31594,3166.5,3166.4,5.73509505]
[1736828803287,0.4828,3166.8,3166.4,5.73509505]
[1736828803488,0.31593,3166.7,3166.4,6.05104505]
[1736828804182,0.31594,3166.6,3166.4,5.73509505]
[1736828806190,0.31593,3166.7,3166.4,5.73509505]
[1736828807387,0.4828,3166.8,3166.4,6.05104505]
[1736828807593,0.31594,3166.5,3166.4,5.73509505]
[1736828808594,0.4828,3166.8,3166.4,5.73509505]
[1736828808790,0.4828,3166.8,3166.4,2.52729505]
[1736828809093,0.31594,3166.5,3166.4,2.52729505]
[1736828809691,0.31594,3166.6,3166.4,2.52729505]
[1736828810091,0.31594,3166.5,3166.4,2.52729505]
[1736828811994,0.4828,3166.8,3166.4,2.52729505]
[1736828812601,0.31594,3166.5,3166.4,2.52729505]
[1736828813505,0.31596,3166.4,3166.2,1.7127]
[1736828813698,0.77896,3166.4,3166.2,1.7127]
[1736828813898,0.77896,3166.4,3166.2,2.02867]
[1736828814404,0.77896,3166.4,3166.2,0.78367]
[1736828814798,0.77896,3166.4,3166.2,0.4677]
[1736828814994,0.77896,3166.4,3166.2,0.78367]
[1736828815199,0.77896,3166.4,3166.2,0.4677]
[1736828815601,0.31596,3166.3,3166.2,0.4677]
[1736828815907,0.77896,3166.4,3166.2,0.78367]
[1736828816599,0.463,3166.4,3166.2,0.4677]
[1736828816903,0.463,3166.4,3166.3,0.31596]
[1736828817208,0.77896,3166.4,3166.2,0.78367]
[1736828818407,0.31596,3166.3,3166.2,0.4677]
[1736828818702,0.463,3166.4,3166.2,0.4677]
[1736828818908,0.76816,3166.3,3166.2,0.4677]
[1736828824801,0.4522,3166.3,3166.2,0.4677]
[1736828825009,0.463,3166.4,3166.2,0.4677]
[1736828825310,0.77516,3166.3,3166.2,0.4677]
[1736828827410,0.4592,3166.3,3166.2,0.78367]
[1736828827613,0.77896,3166.4,3166.2,0.78367]
[1736828828512,0.77896,3166.4,3166.2,0.4677]
[1736828828513,0.31596,3166.3,3166.2,0.4677]
[1736828828807,3.27939921,3166.5,3166.4,0.31595]
[1736828829110,0.78961,3167.6,3166.4,2.52729505]
[1736828829111,0.78918,3167.2,3166.4,2.52729505]
[1736828829315,0.78918,3167.2,3166.3,4.44771]
[1736828829316,0.78918,3167.2,3167.0,0.31589]
[1736828829808,0.31586,3167.4,3167.2,0.31587]
[1736828830112,0.31586,3167.4,3167.1,2.84317505]
[1736828830312,0.31585,3167.5,3167.2,0.31587]
[1736828831711,0.78914,3167.6,3167.3,0.31586]
[1736828831904,0.78914,3167.6,3167.1,2.52729505]
[1736828832398,0.78914,3167.6,3167.4,0.31585]
[1736828832399,0.4733,3167.6,3167.4,0.31585]
[1736828832800,0.4733,3167.6,3167.5,0.4783]
[1736828833014,0.31390627,3168.0,3167.5,0.4783]
[1736828833213,1.11380627,3168.0,3167.7,0.31582]
[1736828833510,1.11380627,3168.0,3167.7,5.73509505]
[1736828833511,0.4841,3168.0,3167.7,5.73509505]
[1736828833710,0.4841,3168.0,3167.9,0.3158]
[1736828835616,0.4841,3168.0,3167.8,0.77621]
[1736828836409,0.4841,3168.0,3167.8,3.6682]
[1736828836613,0.31577,3168.3,3168.0,0.31579]
[1736828837115,0.4988,3168.4,3168.0,0.31579]
[1736828837116,0.4988,3168.4,3168.0,2.52729505]
[1736828837306,0.4988,3168.4,3168.0,2.84308505]
[1736828837620,0.81456,3168.4,3168.0,2.84308505]
[1736828838106,0.81456,3168.4,3168.1,0.4758]
[1736828838907,0.31578,3168.2,3167.8,3.98401]
[1736828839113,0.4988,3168.4,3168.0,2.52729505]
[1736828839317,0.4988,3168.4,3168.3,3.2078]
[1736828840216,0.4988,3168.4,3168.2,0.31577]
[1736828840616,0.81456,3168.4,3168.1,0.31578]
[1736828840811,0.81456,3168.4,3167.9,3.2078]
[1736828840812,0.31578,3168.1,3167.9,3.2078]
[1736828841019,0.4988,3168.4,3167.9,3.2078]
[1736828841317,0.31578,3168.2,3167.9,4.7676]
[1736828842012,0.31577,3168.3,3167.9,4.7676]
[1736828842216,0.31577,3168.3,3168.0,0.31579]
[1736828842217,0.31576,3168.3,3168.0,0.31579]
[1736828842412,0.4988,3168.4,3168.0,2.84308505]
[1736828842615,0.81456,3168.4,3168.0,2.52729505]
[1736828842913,0.81456,3168.4,3168.1,0.31578]
[1736828843118,0.4988,3168.4,3168.1,0.31578]
[1736828843514,0.81456,3168.4,3168.1,0.31578]
[1736828845623,0.81456,3168.4,3168.0,3.77129505]
[1736828845809,0.81456,3168.4,3168.1,0.31578]
[1736828847416,0.81456,3168.4,3168.0,3.77129505]
[1736828847417,0.31578,3168.1,3168.0,1.244]
[1736828848420,0.4988,3168.4,3168.0,1.244]
[1736828848720,0.31577,3168.3,3168.0,1.244]
[1736828849519,0.4988,3168.4,3168.0,1.244]
[1736828849827,0.31577,3168.3,3168.0,1.55979]
[1736828850029,0.4988,3168.4,3168.0,1.244]
[1736828850323,0.31578,3168.2,3168.0,1.55979]
[1736828850525,0.31577,3168.3,3168.0,1.55979]
[1736828851122,0.31578,3168.2,3168.0,1.244]
[1736828851322,0.31578,3168.2,3168.0,1.55979]
[1736828853024,0.31578,3168.2,3168.0,1.244]
[1736828855826,0.4988,3168.4,3168.0,1.244]
[1736828856028,0.31578,3168.1,3168.0,1.244]
[1736828859331,0.4988,3168.4,3167.7,3.00309505]
[1736828859531,0.31581,3167.8,3167.7,0.4758]
[1736828859932,0.31582,3167.7,3167.6,1.244]
[1736828862832,0.31582,3167.7,3167.6,4.4518]
[1736828863231,0.9379,3167.9,3167.4,0.4891]
[1736828863529,0.31586,3167.4,3167.2,4.76767]
[1736828863836,0.4864,3167.3,3167.2,4.76767]
[1736828864030,0.9683,3167.3,3167.2,4.76767]
[1736828866437,0.9683,3167.3,3167.2,1.55987]
[1736828866929,0.4864,3167.3,3167.2,1.55987]
[1736828874735,0.4864,3167.3,3167.2,1.244]
[1736828874942,0.80226,3167.3,3167.2,1.244]
[1736828875438,0.80226,3167.3,3167.2,2.44132608]
[1736828878335,0.80226,3167.3,3167.2,1.19732608]
[1736828882344,4.35312753,3167.8,3167.2,1.19732608]
[1736828882543,0.31586,3167.4,3167.2,0.31587]
[1736828882941,0.31586,3167.4,3167.1,5.3907]
[1736828882942,0.31584,3167.6,3167.3,0.31586]
[1736828883243,0.31584,3167.6,3167.1,5.3907]
[1736828883452,0.78613,3167.7,3167.4,0.31584]
[1736828883743,0.78613,3167.7,3167.6,1.19732608]
[1736828885445,0.78613,3167.7,3167.4,3.52364]
[1736828886548,0.31584,3167.6,3167.4,3.52364]
[1736828886753,0.4703,3167.7,3167.4,3.2078]
[1736828886948,0.78613,3167.7,3167.4,3.2078]
[1736828887152,0.78613,3167.7,3167.4,3.52365]
[1736828887342,0.4703,3167.7,3167.4,3.52365]
[1736828887646,0.31583,3167.6,3167.4,3.52365]
[1736828889453,0.31583,3167.6,3167.5,0.4666]
[1736828892250,3.2078,3168.1,3167.5,0.4666]
[1736828892552,0.8086,3168.0,3167.8,0.31581]
[1736828892747,0.3158,3167.9,3167.6,3.30603482]
[1736828893149,0.4928,3168.0,3167.6,2.99020482]
[1736828893352,0.478,3167.8,3167.6,0.4612]
[1736828893550,0.31582,3167.7,3167.6,0.4612]
[1736828898562,0.478,3167.8,3167.6,2.99020482]
[1736828898751,0.4928,3168.0,3167.7,0.31582]
[1736828898954,0.31581,3167.9,3167.7,0.31582]
[1736828899156,0.31581,3167.9,3167.6,2.99020482]
[1736828899359,0.31581,3167.9,3167.7,0.31582]
[1736828900158,0.4928,3168.0,3167.4,3.2078]
[1736828900362,0.31583,3167.6,3167.5,1.244]
[1736828901160,0.9358,3167.8,3167.1,1.244]
[1736828901367,0.31587,3167.2,3167.1,1.244]
[1736828902268,0.9358,3167.8,3167.0,3.2078]
[1736828902470,0.77318,3167.1,3167.0,3.2078]
[1736828903763,0.4573,3167.1,3166.2,3.2078]
[1736828903968,0.31596,3166.4,3166.0,4.14339482]
[1736828904469,0.31598,3166.2,3166.0,3.82740482]
[1736828905470,1.26087,3166.3,3166.0,3.82740482]
[1736828905870,0.9449,3166.3,3166.0,3.82740482]
[1736828906067,0.31598,3166.1,3166.0,1.2984]
[1736828906271,0.9449,3166.3,3166.0,1.2984]
[1736828906272,0.31598,3166.2,3166.0,1.2984]
[1736828908373,0.31598,3166.2,3165.2,2.97326529]
[1736828908374,0.5,3164.9,3164.0,3.2078]
[1736828908574,0.5,3164.9,3163.5,9.85010267]
[1736828908575,5.73680482,3164.1,3163.5,10.61754267]
[1736828908792,0.31618,3164.1,3163.5,13.50910267]
[1736828908972,3.2078,3164.2,3163.5,13.50910267]
[1736828909281,0.31619,3164.1,3163.5,13.50910267]
[1736828909471,3.52398,3164.2,3163.5,13.50910267]
[1736828909979,3.2078,3164.2,3163.5,3.659]
[1736828910181,0.31619,3164.1,3163.5,3.659]
[1736828910371,3.52397,3164.2,3163.5,3.659]
[1736828910877,3.2078,3164.2,3163.5,3.97524]
[1736828911276,3.2078,3164.2,3163.6,0.31623]
[1736828911471,3.52394,3164.6,3163.9,2.84520482]
[1736828911671,0.9776,3164.8,3164.3,3.2078]
[1736828911879,0.31613,3164.7,3164.3,3.2078]
[1736828912277,0.31613,3164.7,3164.1,0.31618]
[1736828912477,0.31613,3164.7,3164.0,2.50799]
[1736828912672,0.31613,3164.7,3164.1,0.31618]
[1736828912981,0.31613,3164.7,3164.0,2.1918]
[1736828913179,0.31613,3164.7,3164.0,2.50799]
[1736828913881,0.31613,3164.7,3164.1,0.31618]
[1736828914081,0.31613,3164.7,3164.0,2.1918]
[1736828914281,0.31612,3164.7,3164.0,2.50799]
[1736828914481,0.31612,3164.7,3164.1,0.31618]
[1736828914678,3.82272482,3164.8,3164.1,0.31618]
[1736828914979,0.31613,3164.7,3164.1,0.31618]
[1736828915577,0.31612,3164.7,3164.1,0.31618]
[1736828915976,0.31612,3164.7,3164.0,2.1918]
[1736828915977,3.82272482,3164.8,3164.0,2.1918]
[1736828916283,0.31612,3164.7,3164.1,0.31618]
[1736828916876,0.31612,3164.7,3164.2,0.4623]
[1736828918081,0.31612,3164.7,3164.2,3.6701]
[1736828918279,3.50660482,3164.8,3164.2,3.6701]
[1736828918577,0.31613,3164.7,3164.2,3.6701]
[1736828918774,0.31613,3164.7,3164.2,0.4623]
[1736828918976,0.31613,3164.7,3164.2,3.6701]
[1736828919178,0.31613,3164.6,3164.2,3.6701]
[1736828919377,4.01300482,3165.1,3164.2,6.19910482]
[1736828919585,0.3161,3165.0,3164.5,0.31614]
[1736828920175,0.3161,3165.0,3164.4,0.31615]
[1736828920986,0.3161,3165.0,3164.5,0.31614]
[1736828921184,0.31611,3164.9,3164.4,0.31615]
[1736828921384,0.3161,3165.0,3164.4,0.31615]
[1736828921586,0.3161,3165.0,3164.5,0.31614]
[1736828922085,2.52900482,3165.1,3164.5,1.261]
[1736828922281,0.3161,3164.9,3164.5,1.261]
[1736828922487,0.3161,3165.0,3164.5,1.57714]
[1736828923683,0.3161,3165.0,3164.5,1.261]
[1736828923884,0.3161,3165.0,3164.6,0.31613]
[1736828924085,0.3161,3165.0,3164.5,1.57714]
[1736828924289,0.3161,3165.0,3164.6,0.31613]
[1736828924585,0.3161,3165.0,3164.5,1.57714]
[1736828924785,0.31611,3164.9,3164.5,1.57714]
[1736828926088,0.31611,3164.9,3164.5,1.261]
[1736828926587,0.31612,3164.7,3164.5,1.261]
[1736828927477,2.84512482,3164.8,3164.5,1.261]
[1736828929887,0.31611,3164.9,3164.5,1.57714]
[1736828930084,3.2078,3165.3,3164.6,0.4814]
[1736828930593,0.31608,3165.2,3164.8,0.31611]
[1736828930892,3.33046482,3165.4,3165.0,0.31609]
[1736828931292,3.01440482,3165.4,3164.9,0.4527]
[1736828931493,0.31607,3165.3,3164.9,0.7688]
[1736828932085,0.31609,3165.0,3164.9,0.4527]
[1736828934089,0.31611,3164.8,3164.3,0.31616]
[1736828934292,0.31611,3164.8,3164.4,0.31615]
[1736828934793,0.31611,3164.8,3164.5,0.31614]
[1736828934994,0.31611,3164.8,3164.3,2.6861]
[1736828935390,0.31611,3164.8,3164.5,0.31614]
[1736828935589,0.31611,3164.8,3164.3,2.6861]
[1736828935791,0.31611,3164.8,3164.5,0.31614]
[1736828936695,0.31611,3164.8,3164.4,0.31615]
[1736828937800,0.31611,3164.8,3164.5,0.31614]
[1736828938096,0.31611,3164.9,3164.3,2.6861]
[1736828938293,0.31611,3164.9,3164.5,0.31614]
[1736828938697,0.4767,3164.8,3164.5,0.31614]
[1736828939095,3.00570482,3164.8,3164.5,0.31614]
[1736828939300,0.4767,3164.8,3164.5,0.31614]
[1736828940994,0.79281,3164.8,3164.5,0.31614]
[1736828941194,1.24421,3164.8,3164.5,0.31614]
[1736828941394,0.9281,3164.8,3164.5,0.31614]
[1736828942196,0.9281,3164.8,3164.4,3.2078]
[1736828942498,1.24422,3164.8,3164.4,3.2078]
[1736828942698,1.24422,3164.8,3164.5,0.31614]
[1736828945596,0.4665,3164.7,3164.5,0.31614]
[1736828948609,0.4665,3164.7,3164.4,3.2078]
[1736828948812,0.4665,3164.7,3164.5,0.31614]
[1736828949909,0.4665,3164.7,3164.4,3.2078]
[1736828950104,0.4665,3164.7,3164.5,0.31614]
[1736828951210,0.9281,3164.8,3164.6,0.31613]
[1736828952611,0.9281,3164.8,3164.5,0.31614]
[1736828953109,0.9281,3164.8,3164.4,3.2078]
[1736828953415,0.9281,3164.8,3164.6,0.31613]
[1736828955808,0.9281,3164.8,3164.4,3.2078]
[1736828956015,0.9281,3164.8,3164.6,0.31613]
[1736828957803,0.73950796,3165.0,3164.7,0.31612]
[1736828958007,7.75100278,3165.1,3164.8,0.31611]
[1736828958213,0.73950796,3165.0,3164.8,0.31611]
[1736828959011,1.05560796,3165.0,3164.7,0.31612]
[1736828960010,0.73950796,3165.0,3164.6,0.31612]
[1736828960207,0.3161,3165.0,3164.4,3.2078]
[1736828960408,0.3161,3165.0,3164.7,0.31612]
[1736828960409,1.05560796,3165.0,3164.7,0.31612]
[1736828961116,0.6126474,3165.0,3164.7,0.31612]
[1736828961413,0.31611,3164.9,3164.6,0.31613]
[1736828961712,0.3161,3165.0,3164.7,0.31612]
[1736828962717,1.05553354,3165.0,3164.7,0.31612]
[1736828963416,0.3161,3164.9,3164.7,0.31612]
[1736828963814,1.05553354,3165.0,3164.7,0.31612]
[1736828964418,0.3161,3164.9,3164.7,0.31612]
[1736828964610,0.3161,3164.9,3164.6,0.31613]
[1736828965417,1.05553354,3165.0,3164.7,0.31612]
[1736828965818,0.31611,3164.9,3164.6,0.31613]
[1736828966218,1.05553354,3165.0,3164.6,0.31613]
[1736828966517,0.73943354,3165.0,3164.6,0.31613]
[1736828966723,0.3161,3164.9,3164.6,0.31613]
[1736828967215,1.05553354,3165.0,3164.5,0.31614]
[1736828967613,1.05553354,3165.0,3164.6,0.31612]
[1736828968009,0.73943354,3165.0,3164.8,0.00270334]
[1736828968216,0.3161,3164.9,3164.8,0.00270334]
[1736828969316,1.39564587,3164.9,3164.8,0.00270334]
[1736828973620,1.07954587,3164.9,3164.8,0.00270334]
[1736828974724,5.09993587,3165.1,3164.8,0.31881334]
[1736828975019,2.33502201,3165.1,3164.8,0.31881334]
[1736828975220,1.89213587,3165.1,3164.8,0.31881334]
[1736828976330,0.4965,3165.1,3165.0,0.31609]
[1736828976624,0.4965,3165.1,3164.9,1.7494]
[1736828978227,0.4965,3165.1,3164.9,2.82894587]
[1736828978428,0.31608,3165.2,3164.9,2.82894587]
[1736828978617,1.54724587,3165.3,3164.9,2.51284587]
[1736828978821,1.86331587,3165.3,3165.0,0.31609]
[1736828979021,1.39561587,3165.3,3165.0,0.31608]
[1736828979221,1.39561587,3165.3,3164.9,2.51284587]
[1736828979222,0.31608,3165.2,3164.9,2.82894587]
[1736828981636,1.39563587,3165.1,3164.9,1.4333]
[1736828981931,1.07954587,3165.1,3164.9,1.4333]
[1736828983126,0.3161,3164.9,3164.8,0.00270334]
[1736828983336,1.39564587,3164.9,3164.8,0.00270334]
[1736828983732,1.89454587,3164.9,3164.8,0.00270334]
[1736828985941,2.36904587,3164.9,3164.8,0.00270334]
[1736828989233,0.9734,3164.9,3164.8,0.00270334]
[1736828990238,1.2895,3164.9,3164.8,0.00270334]
[1736828990735,2.36904587,3164.9,3164.8,0.00270334]
[1736828995437,3.85304587,3164.9,3164.8,0.00270334]
[1736829003038,0.31619,3164.0,3163.5,3.2078]
[1736829003245,1.07954587,3163.8,3163.7,0.31622]
[1736829004340,1.07954587,3163.8,3163.6,0.4634]
[1736829004540,1.07954587,3163.8,3163.6,0.77963]
[1736829004741,1.07954587,3163.8,3163.6,0.4634]
[1736829004947,0.31622,3163.7,3163.6,0.4634]
[1736829005137,1.07954587,3163.8,3163.6,0.4634]
[1736829005336,0.31622,3163.8,3163.6,0.4634]
[1736829006542,0.9401,3163.9,3163.6,0.4634]
[1736829006746,0.31622,3163.8,3163.6,0.4634]
[1736829007442,0.31622,3163.8,3163.4,1.25515]
[1736829007939,0.9401,3163.9,3163.4,1.25515]
[1736829008141,0.31622,3163.7,3163.4,1.25515]
[1736829008441,0.31622,3163.8,3163.4,1.25515]
[1736829009447,0.9401,3163.9,3163.4,0.9389]
[1736829009448,0.31622,3163.7,3163.4,0.9389]
[1736829010449,0.31622,3163.8,3163.4,1.25515]
[1736829011446,0.9401,3163.9,3163.4,0.9389]
[1736829011643,2.53576251,3163.8,3163.4,0.9389]
[1736829011843,0.31624,3163.5,3163.4,0.9389]
[1736829012047,2.53576251,3163.8,3163.3,3.2078]
[1736829012249,0.79295,3163.4,3163.3,3.2078]
[1736829013247,0.79295,3163.4,3163.1,1.4556]
[1736829014140,0.31627,3163.2,3163.1,0.4789]
[1736829014740,0.31629,3163.0,3162.9,0.9617]
[1736829015247,0.31629,3163.1,3162.9,0.9617]
[1736829015838,2.53576251,3163.2,3162.9,0.9617]
[1736829016041,0.31628,3163.2,3162.9,0.9617]
[1736829016243,0.31628,3163.1,3162.9,0.9617]
[1736829016749,0.31628,3163.2,3162.9,0.9617]
[1736829017250,0.31629,3163.1,3162.9,0.9617]
[1736829017646,0.31633,3162.7,3162.5,3.2078]
[1736829017847,0.31633,3162.6,3162.5,3.2078]
[1736829018041,0.80973,3162.6,3162.5,3.2078]
[1736829023552,3.34549251,3162.6,3162.5,3.2078]
[1736829024455,6.23696251,3162.6,3162.3,0.4763]
[1736829024654,0.31635,3162.4,3162.3,0.4763]
[1736829030659,0.31635,3162.4,3162.1,0.9198]
[1736829030862,0.31639,3162.0,3161.9,0.4787]
[1736829037461,1.08144086,3162.1,3161.6,0.9147]
[1736829037764,0.31641,3161.8,3161.7,0.4753]
[1736829038563,1.86863086,3162.1,3161.7,0.79172]
[1736829038762,1.08144086,3162.1,3161.8,0.31641]
[1736829038959,1.39782086,3162.1,3161.8,0.31641]
[1736829039157,3.2078,3162.2,3161.9,0.3164]
[1736829039357,3.52418,3162.2,3161.9,0.3164]
[1736829040262,1.39783086,3162.1,3161.8,1.39785086]
[1736829040469,0.3164,3162.0,3161.7,0.79172]
[1736829040767,1.39783086,3162.1,3161.7,0.79172]
[1736829041266,1.08144086,3162.1,3161.8,0.31641]
[1736829041662,1.08144086,3161.9,3161.7,0.4753]
[1736829041870,0.31641,3161.8,3161.7,0.4753]
[1736829042164,0.77441,3161.8,3161.7,0.4753]
[1736829043563,0.458,3161.8,3161.7,0.4753]
[1736829044365,0.31641,3161.9,3161.7,0.4753]
[1736829046569,0.7916,3162.0,3161.7,0.4753]